fUST/lending_fUST_20240818
["ID","MTS","AMOUNT","RATE_DAILY","PERIOD"]
[335202756,1723975855075,-500.0,0.0001726,2]
[335202757,1723975855086,-500.0,0.0001726,2]
[335202758,1723975855096,-739.06,0.0001726,2]
[335202759,1723975855105,-500.0,0.0001726,2]
[335202760,1723975855115,-500.0,0.0001726,2]
[335202761,1723975855124,-500.0,0.0001726,2]
[335202762,1723975855134,-175.31617816,0.0001726,2]
[335202763,1723975855143,-500.0,0.0001726,2]
[335202764,1723975855152,-500.0,0.0001726,2]
[335202765,1723975855161,-419.09183547,0.0001726,2]
[335202766,1723975855170,-541.93,0.0001726,2]
[335202767,1723975855179,-500.0,0.0001726,2]
[335202768,1723975855188,-504.48812504,0.0001726,2]
[335202769,1723975855198,-1000.0,0.0001726,2]
[335202770,1723975855207,-795.36,0.0001726,2]
[335202771,1723975855216,-500.0,0.0001726,2]
[335202772,1723975855226,-628.75,0.0001726,2]
[335202773,1723975855236,-500.0,0.0001726,2]
[335202774,1723975855245,-500.0,0.0001726,2]
[335202775,1723975855254,-1184.58,0.0001726,2]
[335202776,1723975855263,-500.0,0.0001726,2]
[335202777,1723975855273,-500.0,0.0001726,2]
[335202778,1723975855282,-500.0,0.0001726,2]
[335202779,1723975855291,-500.0,0.0001726,2]
[335202780,1723975855301,-1779.42,0.0001726,2]
[335202781,1723975855310,-500.0,0.0001726,2]
[335202782,1723975855319,-500.0,0.0001726,2]
[335202783,1723975855329,-690.01,0.0001726,2]
[335202784,1723975855338,-787.93,0.0001726,2]
[335202785,1723975855347,-553.0,0.0001726,2]
[335202786,1723975855357,-500.0,0.0001726,2]
[335202787,1723975855366,-604.5,0.0001726,2]
[335202788,1723975855376,-504.42359911,0.0001726,2]
[335202789,1723975855385,-500.0,0.0001726,2]
[335202790,1723975855395,-500.0,0.0001726,2]
[335202791,1723975855404,-500.0,0.0001726,2]
[335202792,1723975855413,-506.14062834,0.0001726,2]
[335202793,1723975855423,-1062.24,0.0001726,2]
[335202794,1723975855432,-500.0,0.0001726,2]
[335202795,1723975855442,-1234.84,0.0001726,2]
[335202796,1723975855451,-500.0,0.0001726,2]
[335202797,1723975855461,-500.0,0.0001726,2]
[335202798,1723975855470,-500.0,0.0001726,2]
[335202799,1723975855480,-1058.98,0.0001726,2]
[335202800,1723975855489,-500.0,0.0001726,2]
[335202801,1723975855498,-500.0,0.0001726,2]
[335202802,1723975855508,-1242.8,0.0001726,2]
[335202803,1723975855518,-547.1,0.0001726,2]
[335202804,1723975855528,-991.73,0.0001726,2]
[335202805,1723975855539,-500.0,0.0001726,2]
[335202806,1723975855548,-500.0,0.0001726,2]
[335202807,1723975855557,-654.27,0.0001726,2]
[335202808,1723975855567,-500.0,0.0001726,2]
[335202809,1723975855576,-596.35,0.0001726,2]
[335202810,1723975855586,-500.0,0.0001726,2]
[335202811,1723975855595,-501.44,0.0001726,2]
[335202812,1723975855606,-1968.71,0.0001726,2]
[335202813,1723975855616,-530.81,0.0001726,2]
[335202814,1723975855625,-4276.47,0.0001726,2]
[335202815,1723975855635,-700.84,0.0001726,2]
[335202816,1723975855645,-842.33,0.0001726,2]
[335202817,1723975855655,-1213.68,0.0001726,2]
[335202818,1723975855664,-500.0,0.0001726,2]
[335202819,1723975855673,-500.0,0.0001726,2]
[335202820,1723975855683,-500.0,0.0001726,2]
[335202821,1723975855693,-500.0,0.0001726,2]
[335202822,1723975855704,-500.0,0.0001726,2]
[335202823,1723975855713,-500.0,0.0001726,2]
[335202824,1723975855723,-2834.67,0.0001726,2]
[335202825,1723975855733,-500.0,0.0001726,2]
[335202826,1723975855743,-500.0,0.0001726,2]
[335202827,1723975855753,-1049.89,0.0001726,2]
[335202828,1723975855762,-541.5088172,0.0001726,2]
[335202829,1723975855772,-841.62,0.0001726,2]
[335202830,1723975855781,-969.98,0.0001726,2]
[335202831,1723975855791,-500.0,0.0001726,2]
[335202832,1723975855801,-812.46,0.0001726,2]
[335202833,1723975855810,-500.0,0.0001726,2]
[335202834,1723975855820,-1115.29,0.0001726,2]
[335202835,1723975855829,-500.0,0.0001726,2]
[335202836,1723975855839,-500.0,0.0001726,2]
[335202837,1723975855847,-500.0,0.0001726,2]
[335202838,1723975855857,-537.54,0.0001726,2]
[335202839,1723975855866,-500.0,0.0001726,2]
[335202840,1723975855875,-932.19,0.0001726,2]
[335202841,1723975855885,-1792.07,0.0001726,2]
[335202842,1723975855894,-500.0,0.0001726,2]
[335202843,1723975855904,-577.19,0.0001726,2]
[335202844,1723975855913,-1047.52,0.0001726,2]
[335202845,1723975855923,-500.0,0.0001726,2]
[335202846,1723975855932,-500.0,0.0001726,2]
[335202847,1723975855942,-935.42,0.0001726,2]
[335202848,1723975855952,-550.3,0.0001726,2]
[335202849,1723975855961,-503.37,0.0001726,2]
[335202850,1723975855970,-646.91,0.0001726,2]
[335202851,1723975855979,-580.66,0.0001726,2]
[335202852,1723975855990,-958.9,0.0001726,2]
[335202853,1723975856000,-500.0,0.0001726,2]
[335202854,1723975856014,-500.0,0.0001726,2]
[335202855,1723975856023,-500.0,0.0001726,2]
[335202856,1723975856033,-2045.51,0.0001726,2]
[335202857,1723975856043,-500.0,0.0001726,2]
[335202858,1723975856054,-500.0,0.0001726,2]
[335202859,1723975856064,-517.67,0.0001726,2]
[335202860,1723975856073,-500.0,0.0001726,2]
[335202861,1723975856085,-500.0,0.0001726,2]
[335202862,1723975856095,-500.0,0.0001726,2]
[335202863,1723975856105,-671.98,0.0001726,2]
[335202864,1723975856114,-641.97,0.0001726,2]
[335202865,1723975856124,-2599.49,0.0001726,2]
[335202866,1723975856134,-500.0,0.0001726,2]
[335202867,1723975856144,-500.0,0.0001726,2]
[335202868,1723975856154,-6716.99,0.0001726,2]
[335202869,1723975856163,-445.17156164,0.0001726,2]
[335202870,1723975856173,-820.82,0.0001726,2]
[335202871,1723975856183,-471.26267104,0.0001726,2]
[335202872,1723975856192,-500.0,0.0001726,2]
[335202873,1723975856201,-820.5,0.0001726,2]
[335202874,1723975856211,-721.61,0.0001726,2]
[335202875,1723975856220,-500.0,0.0001726,2]
[335202876,1723975856230,-500.0,0.0001726,2]
[335202877,1723975856241,-729.38,0.0001726,2]
[335202878,1723975856250,-636.58,0.0001726,2]
[335202879,1723975856259,-674.4,0.0001726,2]
[335202880,1723975856268,-500.0,0.0001726,2]
[335202881,1723975856278,-500.0,0.0001726,2]
[335202882,1723975856287,-170.170398,0.0001726,2]
[335202883,1723975856297,-1149.89,0.0001726,2]
[335202884,1723975856307,-170.170398,0.0001726,2]
[335202885,1723975856316,-500.0,0.0001726,2]
[335202886,1723975856325,-500.0,0.0001726,2]
[335202887,1723975856335,-500.0,0.0001726,2]
[335202888,1723975856345,-500.0,0.0001726,2]
[335202889,1723975856354,-500.0,0.0001726,2]
[335202890,1723975856363,-891.32,0.0001726,2]
[335202891,1723975856372,-812.98,0.0001726,2]
[335202892,1723975856382,-890.82,0.0001726,2]
[335202893,1723975856391,-500.0,0.0001726,2]
[335202894,1723975856401,-1069.24,0.0001726,2]
[335202895,1723975856411,-500.0,0.0001726,2]
[335202896,1723975856421,-701.49,0.0001726,2]
[335202897,1723975856431,-752.09,0.0001726,2]
[335202898,1723975856440,-807.24,0.0001726,2]
[335202899,1723975856450,-500.0,0.0001726,2]
[335202900,1723975856459,-500.0,0.0001726,2]
[335202901,1723975856469,-716.82,0.0001726,2]
[335202902,1723975856478,-500.0,0.0001726,2]
[335202903,1723975856488,-551.57,0.0001726,2]
[335202904,1723975856498,-708.62,0.0001726,2]
[335202905,1723975856508,-166.4,0.00017333,2]
[335202906,1723975856517,-150.112233,0.000174,2]
[335202907,1723975856526,-150.112233,0.000175,2]
[335202908,1723975856535,-500.0,0.00017534,2]
[335202909,1723975856546,-500.0,0.00017534,2]
[335202910,1723975856555,-500.0,0.00017534,2]
[335202911,1723975856565,-415.57377375,0.00017534,2]
[335202912,1723975856574,-500.0,0.00017534,2]
[335202913,1723975856583,-500.0,0.00017534,2]
[335202914,1723975856592,-633.65891245,0.00017534,2]
[335202915,1723975856601,-212.56,0.00017534,2]
[335202916,1723975856611,-151.0,0.00017534,2]
[335202917,1723975856620,-247.22239,0.00017534,2]
[335202918,1723975856630,-494.52120852,0.00017534,2]
[335202919,1723975856639,-500.0,0.00017534,2]
[335202920,1723975856649,-849.17,0.00017534,2]
[335202921,1723975856658,-752.37,0.00017534,2]
[335202922,1723975856668,-500.0,0.00017534,2]
[335202923,1723975856677,-500.0,0.00017534,2]
[335202924,1723975856688,-500.0,0.00017534,2]
[335202925,1723975856698,-500.0,0.00017534,2]
[335202926,1723975856708,-500.0,0.00017534,2]
[335202927,1723975856718,-500.0,0.00017534,2]
[335202928,1723975856728,-500.0,0.00017534,2]
[335202929,1723975856740,-500.0,0.00017534,2]
[335202930,1723975856751,-693.39,0.00017534,2]
[335202931,1723975856762,-500.0,0.00017534,2]
[335202932,1723975856772,-343.42173942,0.00017534,2]
[335202933,1723975856784,-500.0,0.00017534,2]
[335202934,1723975856794,-500.0,0.00017534,2]
[335202935,1723975856805,-500.0,0.00017534,2]
[335202936,1723975856816,-500.0,0.00017534,2]
[335202937,1723975856927,-506.09,0.00017534,2]
[335202938,1723975856938,-500.0,0.00017534,2]
[335202939,1723975856949,-560.29837681,0.00017534,2]
[335202940,1723975856959,-538.98,0.00017534,2]
[335202941,1723975856970,-500.0,0.00017534,2]
[335202942,1723975856980,-500.0,0.00017534,2]
[335202943,1723975856992,-953.05,0.00017534,2]
[335202944,1723975857002,-500.0,0.00017534,2]
[335202945,1723975857016,-500.0,0.00017534,2]
[335202946,1723975857026,-500.0,0.00017534,2]
[335202947,1723975857037,-639.44,0.00017534,2]
[335202948,1723975857048,-655.9,0.00017534,2]
[335202949,1723975857059,-500.0,0.00017534,2]
[335202950,1723975857068,-612.4,0.00017534,2]
[335202951,1723975857078,-632.58,0.00017534,2]
[335202952,1723975857088,-737.84,0.00017534,2]
[335202953,1723975857097,-500.0,0.00017534,2]
[335202954,1723975857107,-500.0,0.00017534,2]
[335202955,1723975857116,-415.24042479,0.00017534,2]
[335202956,1723975857125,-944.98,0.00017534,2]
[335202957,1723975857134,-552.29,0.00017534,2]
[335202958,1723975857144,-500.0,0.00017534,2]
[335202959,1723975857153,-500.0,0.00017534,2]
[335202960,1723975857162,-500.0,0.00017534,2]
[335202961,1723975857172,-500.0,0.00017534,2]
[335202962,1723975857182,-500.0,0.00017534,2]
[335202963,1723975857192,-500.0,0.00017534,2]
[335202964,1723975857202,-792.81,0.00017534,2]
[335202965,1723975857212,-744.89,0.00017534,2]
[335202966,1723975857223,-500.0,0.00017534,2]
[335202967,1723975857236,-500.0,0.00017534,2]
[335202968,1723975857246,-650.78,0.00017534,2]
[335202969,1723975857255,-500.0,0.00017534,2]
[335202970,1723975857264,-500.0,0.00017534,2]
[335202971,1723975857274,-1387.31,0.00017534,2]
[335202972,1723975857283,-500.0,0.00017534,2]
[335202973,1723975857293,-500.0,0.00017534,2]
[335202974,1723975857302,-500.0,0.00017534,2]
[335202975,1723975857312,-500.0,0.00017534,2]
[335202976,1723975857321,-500.0,0.00017534,2]
[335202977,1723975857331,-500.0,0.00017534,2]
[335202978,1723975857340,-500.0,0.00017534,2]
[335202979,1723975857350,-748.12,0.00017534,2]
[335202980,1723975857359,-500.0,0.00017534,2]
[335202981,1723975857369,-500.0,0.00017534,2]
[335202982,1723975857379,-713.86,0.00017534,2]
[335202983,1723975857388,-502.31312598,0.00017534,2]
[335202984,1723975857398,-500.0,0.00017534,2]
[335202985,1723975857408,-500.0,0.00017534,2]
[335202986,1723975857418,-500.0,0.00017534,2]
[335202987,1723975857427,-200.0,0.00017534,2]
[335202988,1723975857436,-500.0,0.00017534,2]
[335202989,1723975857446,-500.0,0.00017534,2]
[335202990,1723975857455,-500.0,0.00017534,2]
[335202991,1723975857464,-151.0,0.00017534,2]
[335202992,1723975857474,-520.32,0.00017534,2]
[335202993,1723975857485,-532.8,0.00017534,2]
[335202994,1723975857495,-2005.0,0.00017534,10]
[335202995,1723975857504,-500.0,0.00017534,2]
[335202996,1723975857514,-569.87,0.00017534,2]
[335202997,1723975857523,-715.19,0.00017534,2]
[335202998,1723975857533,-708.43,0.00017534,2]
[335202999,1723975857542,-500.0,0.00017534,2]
[335203000,1723975857552,-1103.33,0.00017534,2]
[335203001,1723975857561,-508.19,0.00017534,2]
[335203002,1723975857570,-663.94,0.00017534,2]
[335203003,1723975857579,-500.0,0.00017534,2]
[335203004,1723975857588,-500.0,0.00017534,2]
[335203005,1723975857598,-579.33,0.00017534,2]
[335203006,1723975857608,-500.0,0.00017534,2]
[335203007,1723975857618,-910.15,0.00017534,2]
[335203008,1723975857628,-500.0,0.00017534,2]
[335203009,1723975857638,-500.0,0.00017534,2]
[335203010,1723975857647,-500.0,0.00017534,2]
[335203011,1723975857657,-500.0,0.00017534,2]
[335203012,1723975857667,-534.96,0.00017534,2]
[335203013,1723975857677,-500.0,0.00017534,2]
[335203014,1723975857687,-500.0,0.00017534,2]
[335203015,1723975857697,-651.59,0.00017534,2]
[335203016,1723975857708,-487.55624958,0.00017534,2]
[335203017,1723975857718,-500.0,0.00017534,2]
[335203018,1723975857728,-565.19,0.00017534,2]
[335203019,1723975857739,-606.11,0.00017534,2]
[335203020,1723975857750,-500.0,0.00017534,2]
[335203021,1723975857760,-555.52,0.00017534,2]
[335203022,1723975857771,-500.0,0.00017534,2]
[335203023,1723975857781,-611.88,0.00017534,2]
[335203024,1723975857791,-500.0,0.00017534,2]
[335203025,1723975857802,-589.12,0.00017534,2]
[335203026,1723975857813,-749.94,0.00017534,2]
[335203027,1723975857823,-500.0,0.00017534,2]
[335203028,1723975857834,-500.0,0.00017534,2]
[335203029,1723975857845,-500.0,0.00017534,2]
[335203030,1723975857854,-641.13,0.00017534,2]
[335203031,1723975857865,-500.0,0.00017534,2]
[335203032,1723975857876,-500.0,0.00017534,2]
[335203033,1723975857887,-1137.4,0.00017534,2]
[335203034,1723975857897,-500.0,0.00017534,2]
[335203035,1723975857909,-500.0,0.00017534,2]
[335203036,1723975857920,-915.34,0.00017534,2]
[335203037,1723975857931,-500.0,0.00017534,2]
[335203038,1723975857942,-500.0,0.00017534,2]
[335203039,1723975857952,-500.0,0.00017534,2]
[335203040,1723975857963,-500.0,0.00017534,2]
[335203041,1723975857974,-500.0,0.00017534,2]
[335203042,1723975857984,-500.0,0.00017534,2]
[335203043,1723975857994,-739.06,0.00017534,2]
[335203044,1723975858005,-500.0,0.00017534,2]
[335203045,1723975858018,-500.0,0.00017534,2]
[335203046,1723975858028,-500.0,0.00017534,2]
[335203047,1723975858037,-500.0,0.00017534,2]
[335203048,1723975858047,-500.0,0.00017534,2]
[335203049,1723975858059,-541.93,0.00017534,2]
[335203050,1723975858068,-500.0,0.00017534,2]
[335203051,1723975858078,-323.22735381,0.00017534,2]
[335203052,1723975858088,-795.36,0.00017534,2]
[335203053,1723975858098,-486.62272722,0.00017534,2]
[335203054,1723975858107,-628.75,0.00017534,2]
[335203055,1723975858116,-500.0,0.00017534,2]
[335203056,1723975858126,-500.0,0.00017534,2]
[335203057,1723975858135,-1184.58,0.00017534,2]
[335203058,1723975858144,-286.52501568,0.00017534,2]
[335203059,1723975858153,-197.37112501,0.00017534,2]
[335203060,1723975858163,-500.0,0.00017534,2]
[335203061,1723975858174,-500.0,0.00017534,2]
[335203062,1723975858185,-1779.42,0.00017534,2]
[335203063,1723975858194,-500.0,0.00017534,2]
[335203064,1723975858204,-500.0,0.00017534,2]
[335203065,1723975858214,-690.01,0.00017534,2]
[335203066,1723975858224,-787.93,0.00017534,2]
[335203067,1723975858235,-553.0,0.00017534,2]
[335203068,1723975858244,-500.0,0.00017534,2]
[335203069,1723975858253,-604.5,0.00017534,2]
[335203070,1723975858263,-500.0,0.00017534,2]
[335203071,1723975858273,-500.0,0.00017534,2]
[335203072,1723975858282,-500.0,0.00017534,2]
[335203073,1723975858292,-1062.24,0.00017534,2]
[335203074,1723975858302,-500.0,0.00017534,2]
[335203075,1723975858311,-1234.84,0.00017534,2]
[335203076,1723975858321,-500.0,0.00017534,2]
[335203077,1723975858331,-500.0,0.00017534,2]
[335203078,1723975858340,-500.0,0.00017534,2]
[335203079,1723975858350,-1058.98,0.00017534,2]
[335203080,1723975858359,-500.0,0.00017534,2]
[335203081,1723975858369,-500.0,0.00017534,2]
[335203082,1723975858378,-1242.8,0.00017534,2]
[335203083,1723975858388,-547.1,0.00017534,2]
[335203084,1723975858398,-991.73,0.00017534,2]
[335203085,1723975858408,-500.0,0.00017534,2]
[335203086,1723975858417,-500.0,0.00017534,2]
[335203087,1723975858428,-654.27,0.00017534,2]
[335203088,1723975858437,-500.0,0.00017534,2]
[335203089,1723975858446,-596.35,0.00017534,2]
[335203090,1723975858455,-500.0,0.00017534,2]
[335203091,1723975858466,-501.44,0.00017534,2]
[335203092,1723975858475,-1968.71,0.00017534,2]
[335203093,1723975858485,-530.81,0.00017534,2]
[335203094,1723975858494,-4276.47,0.00017534,2]
[335203095,1723975858504,-700.84,0.00017534,2]
[335203096,1723975858514,-842.33,0.00017534,2]
[335203097,1723975858523,-1213.68,0.00017534,2]
[335203098,1723975858533,-500.0,0.00017534,2]
[335203099,1723975858542,-500.0,0.00017534,2]
[335203100,1723975858552,-529.96902806,0.00017534,2]
[335203101,1723975858562,-261.82463959,0.00017534,2]
[335203102,1723975858571,-500.0,0.00017534,2]
[335203103,1723975858581,-500.0,0.00017534,2]
[335203104,1723975858590,-818.14352654,0.00017534,2]
[335203105,1723975860605,-403.94893774,0.00014519,2]
[335203106,1723975860615,-2654.30558431,0.00016438,2]
[335203107,1723975860631,-505.540001,0.00016438,2]
[335203108,1723975860643,-2862.53441469,0.00016438,2]
[335203109,1723975860656,-6022.38,0.00016438,2]
[335203110,1723975860666,-6022.38,0.00016438,2]
[335203111,1723975860677,-500.0,0.00016438,2]
[335203112,1723975860687,-6022.38,0.00016438,2]
[335203113,1723975860697,-6022.38,0.00016438,2]
[335203114,1723975860707,-6022.38,0.00016438,2]
[335203115,1723975860718,-500.0,0.00016712,2]
[335203116,1723975860728,-500.0,0.00016712,2]
[335203117,1723975860740,-512.98364531,0.00016986,2]
[335203118,1723975860752,-2016.52647346,0.00017534,2]
[335203119,1723975860764,-500.0,0.00017534,2]
[335203120,1723975860774,-518.64772597,0.00017534,2]
[335203121,1723975860786,-1049.89,0.00017534,2]
[335203122,1723975860799,-517.19891657,0.00017534,2]
[335203123,1723975860992,-782.46103051,0.00016167,2]
[335203124,1723975861002,-6022.38,0.00016438,2]
[335203125,1723975861014,-414.51921507,0.00016438,2]
[335203126,1723975861025,-500.0,0.00016438,2]
[335203127,1723975861035,-6022.38,0.00016438,2]
[335203128,1723975861046,-436.78895474,0.00016438,2]
[335203129,1723975861226,-63.21104526,0.00016438,2]
[335203130,1723975861236,-2937.55981865,0.00016438,2]
[335203131,1723975862016,938.91313571,8e-05,2]
[335203134,1723975874716,3619.57384766,8e-05,2]
[335203136,1723975885296,192.77052201,8e-05,2]
[335203138,1723975899210,166.4,5.479e-05,2]
[335203139,1723975923079,2926.18841505,8e-05,2]
[335203140,1723975946503,938.91313571,8e-05,2]
[335203141,1723975947691,154.84620557,8e-05,2]
[335203143,1723975955091,2408.37231536,8e-05,2]
[335203144,1723975957567,3619.57384766,8e-05,2]
[335203145,1723975977047,4720.37412615,8e-05,2]
[335203146,1723976041544,302.8824432,8e-05,2]
[335203147,1723976063757,218.70409946,8e-05,2]
[335203148,1723976065559,3619.57384766,8e-05,2]
[335203149,1723976082069,4719.6365418,8e-05,2]
[335203150,1723976107184,377.05281157,8e-05,2]
[335203151,1723976109034,2112.29265619,8e-05,2]
[335203152,1723976137766,218.70409946,8e-05,2]
[335203153,1723976159006,405.39053387,8e-05,2]
[335203154,1723976165562,3217.70531354,8e-05,2]
[335203155,1723976195829,166.4,5.479e-05,2]
[335203156,1723976201025,2112.29265619,8e-05,2]
[335203158,1723976230634,250.0,7.294e-05,2]
[335203159,1723976230837,250.0,7.314e-05,2]
[335203160,1723976231397,250.0,7.334e-05,2]
[335203161,1723976231455,250.0,7.354e-05,2]
[335203162,1723976231661,250.0,7.374e-05,2]
[335203163,1723976231769,217.63322077,8e-05,2]
[335203164,1723976231872,250.0,7.394e-05,2]
[335203165,1723976232093,250.0,7.414e-05,2]
[335203166,1723976232294,250.0,7.434e-05,2]
[335203167,1723976232614,250.0,7.454e-05,2]
[335203168,1723976232721,250.0,7.474e-05,2]
[335203169,1723976232936,250.0,7.494e-05,2]
[335203170,1723976233169,250.0,7.514e-05,2]
[335203171,1723976234176,250.0,7.534e-05,2]
[335203172,1723976234394,250.0,7.554e-05,2]
[335203173,1723976234608,250.0,7.574e-05,2]
[335203174,1723976234836,250.0,7.594e-05,2]
[335203175,1723976235052,250.0,7.614e-05,2]
[335203176,1723976235298,250.0,7.634e-05,2]
[335203177,1723976236157,250.0,7.654e-05,2]
[335203178,1723976236437,250.0,7.674e-05,2]
[335203179,1723976242217,608.9060757,7.298e-05,2]
[335203181,1723976244013,405.34838299,8e-05,2]
[335203182,1723976247650,2127.39988805,7.911e-05,2]
[335203183,1723976291085,245.0,8e-05,2]
[335203184,1723976296031,2112.29265619,7.911e-05,2]
[335203185,1723976325996,933.70029218,7.954e-05,2]
[335203186,1723976326650,2382.4901447,7.24e-05,2]
[335203187,1723976350395,1250.70503,7.954e-05,2]
[335203188,1723976354639,812.10587016,7.954e-05,2]
[335203189,1723976362667,500.0,0.000202,120]
[335203190,1723976381030,1199.7168238,7.275e-05,2]
[335203191,1723976405678,269.26782416,7.954e-05,2]
[335203192,1723976416184,304.83,0.000202,120]
[335203193,1723976417527,308.19642651,7.954e-05,2]
[335203194,1723976424602,166.8937447,7.217e-05,2]
[335203196,1723976433590,24900.0,7.397e-05,2]
[335203197,1723976439847,181.72206402,7.954e-05,2]
[335203198,1723976457408,197.47872025,7.954e-05,2]
[335203199,1723976463758,176.10135711,7.954e-05,2]
[335203200,1723976464165,223.49558008,7.954e-05,2]
[335203202,1723976468084,154.79103211,7.954e-05,2]
[335203203,1723976470827,206.56865266,7.954e-05,2]
[335203204,1723976471093,725.23517495,7.217e-05,2]
[335203205,1723976476306,255.10499635,7.954e-05,2]
[335203206,1723976477553,154.84579262,7.954e-05,2]
[335203207,1723976483392,197.27743078,7.954e-05,2]
[335203208,1723976493605,520.42439304,7.954e-05,2]
[335203209,1723976495250,166.4,5.479e-05,2]
[335203210,1723976500549,180.7743733,7.954e-05,2]
[335203211,1723976502919,157.17103477,7.954e-05,2]
[335203212,1723976514110,293.31685336,7.954e-05,2]
[335203213,1723976518831,154.95763122,7.954e-05,2]
[335203215,1723976525506,534.79828799,7.954e-05,2]
[335203216,1723976533553,156.46495656,7.954e-05,2]
[335203217,1723976542326,240.2347681,7.954e-05,2]
[335203218,1723976557494,250.32373804,7.954e-05,2]
[335203219,1723976568204,288.94537425,7.954e-05,2]
[335203220,1723976609083,273.37336231,8e-05,2]
[335203221,1723976614216,11854.8541962,7.257e-05,2]
[335203222,1723976624932,273.37336231,8e-05,2]
[335203223,1723976632535,561.44739894,7.954e-05,2]
[335203224,1723976640411,273.37336231,8e-05,2]
[335203225,1723976644645,878.85510869,7.954e-05,3]
[335203226,1723976656535,273.37336231,8e-05,2]
[335203227,1723976671829,273.37336231,8e-05,2]
[335203228,1723976684555,161.41331604,7.954e-05,2]
[335203229,1723976687254,273.37336231,8e-05,2]
[335203230,1723976703149,273.37336231,8e-05,2]
[335203232,1723976719699,273.37336231,8e-05,2]
[335203233,1723976736204,273.37336231,8e-05,2]
[335203234,1723976752147,273.37336231,8e-05,2]
[335203235,1723976754197,8734.9130093,7.311e-05,2]
[335203236,1723976767570,273.37336231,8e-05,2]
[335203237,1723976777376,188.49095664,7.954e-05,2]
[335203238,1723976778542,250.0,7.307e-05,2]
[335203239,1723976778750,250.0,7.327e-05,2]
[335203240,1723976779128,250.0,7.347e-05,2]
[335203241,1723976779186,250.0,7.367e-05,2]
[335203242,1723976779584,250.0,7.387e-05,2]
[335203243,1723976779817,250.0,7.407e-05,2]
[335203244,1723976780061,250.0,7.427e-05,2]
[335203245,1723976780288,250.0,7.447e-05,2]
[335203246,1723976780510,250.0,7.467e-05,2]
[335203247,1723976780712,250.0,7.487e-05,2]
[335203248,1723976780922,250.0,7.507e-05,2]
[335203249,1723976781144,250.0,7.527e-05,2]
[335203250,1723976781375,250.0,7.547e-05,2]
[335203251,1723976781802,250.0,7.567e-05,2]
[335203252,1723976782019,250.0,7.587e-05,2]
[335203253,1723976782240,250.0,7.607e-05,2]
[335203254,1723976782461,250.0,7.627e-05,2]
[335203255,1723976782664,250.0,7.647e-05,2]
[335203256,1723976782887,250.0,7.667e-05,2]
[335203257,1723976783084,250.0,7.687e-05,2]
[335203258,1723976784085,273.37336231,8e-05,2]
[335203259,1723976794844,166.4,5.479e-05,2]
[335203260,1723976798112,934.99960381,7.954e-05,2]
[335203261,1723976800373,273.37336231,8e-05,2]
[335203262,1723976806626,2010.9396659,7.311e-05,2]
[335203263,1723976815709,273.37336231,8e-05,2]
[335203264,1723976825011,202.55035865,7.954e-05,2]
[335203265,1723976827100,-156.75132574,8.019e-05,2]
[335203266,1723976827124,-67.89099177,8.069e-05,2]